[Event "*** Titled Tuesday 3|2 Blitz"]
[Site "Chess.com"]
[Date "2017.06.06"]
[Round "10"]
[White "igorkovalenko"]
[Black "jcibarra"]
[Result "0-1"]
[WhiteElo "2640"]
[BlackElo "2665"]
[TimeControl "180+2"]
[EndTime "16:05:03 PDT"]
[Termination "jcibarra won by resignation"]

1. c4 {[%clk 0:03:02]} 1... e5 {[%clk 0:02:59.7]} 2. Nc3 {[%clk 0:03:02.5]} 2...
Nf6 {[%clk 0:03:00.3]} 3. Nf3 {[%clk 0:03:03.6]} 3... d6 {[%clk 0:03:01.1]} 4.
g3 {[%clk 0:03:00.7]} 4... g6 {[%clk 0:03:00.7]} 5. Bg2 {[%clk 0:03:02.2]} 5...
Bg7 {[%clk 0:03:02.2]} 6. O-O {[%clk 0:03:03.4]} 6... O-O {[%clk 0:03:03.7]} 7.
d3 {[%clk 0:03:02.9]} 7... Nc6 {[%clk 0:03:02.7]} 8. Rb1 {[%clk 0:03:02.1]} 8...
a5 {[%clk 0:03:03.6]} 9. a3 {[%clk 0:03:02.6]} 9... Re8 {[%clk 0:03:04.2]} 10.
Bg5 {[%clk 0:02:57.4]} 10... h6 {[%clk 0:03:04]} 11. Bxf6 {[%clk 0:02:58.6]}
11... Bxf6 {[%clk 0:03:05.9]} 12. Nd2 {[%clk 0:03:00.5]} 12... Bg7 {[%clk
0:03:05.8]} 13. b4 {[%clk 0:03:01.6]} 13... axb4 {[%clk 0:03:05.4]} 14. axb4
{[%clk 0:03:03.5]} 14... e4 {[%clk 0:03:07.2]} 15. Nd5 {[%clk 0:02:39.9]} 15...
exd3 {[%clk 0:03:04.9]} 16. exd3 {[%clk 0:02:41.8]} 16... Nd4 {[%clk 0:03:04.2]}
17. Re1 {[%clk 0:02:35.5]} 17... Rxe1+ {[%clk 0:02:56]} 18. Qxe1 {[%clk
0:02:36.5]} 18... Be6 {[%clk 0:02:51.2]} 19. Nf4 {[%clk 0:02:27.3]} 19... Bc8
{[%clk 0:02:51.3]} 20. b5 {[%clk 0:02:25.4]} 20... c6 {[%clk 0:02:49.1]} 21.
bxc6 {[%clk 0:02:24.2]} 21... bxc6 {[%clk 0:02:51]} 22. Nf3 {[%clk 0:02:25.4]}
22... Ra2 {[%clk 0:02:45.9]} 23. Qe3 {[%clk 0:01:36.2]} 23... c5 {[%clk
0:02:37]} 24. Nd5 {[%clk 0:01:25]} 24... Kh7 {[%clk 0:02:23.1]} 25. Rf1 {[%clk
0:00:54.2]} 25... Be6 {[%clk 0:02:14.8]} 26. Nf4 {[%clk 0:00:45.9]} 26... Bf5
{[%clk 0:02:07.9]} 27. h4 {[%clk 0:00:35.1]} 27... Qd7 {[%clk 0:01:46]} 28. h5
{[%clk 0:00:21.8]} 28... g5 {[%clk 0:01:45.1]} 29. Nd5 {[%clk 0:00:23.2]} 29...
Qe6 {[%clk 0:01:27.8]} 30. Rd1 {[%clk 0:00:17.7]} 30... Bg4 {[%clk 0:01:16.8]}
31. Rf1 {[%clk 0:00:13.6]} 31... Bxh5 {[%clk 0:01:03.9]} 32. Nh2 {[%clk
0:00:09.1]} 32... Be2 {[%clk 0:00:45.1]} 33. Rb1 {[%clk 0:00:06.2]} 33... Qxe3
{[%clk 0:00:43.4]} 34. fxe3 {[%clk 0:00:07.5]} 34... Bxd3 {[%clk 0:00:45]} 35.
Rb7 {[%clk 0:00:05.9]} 35... Ne2+ {[%clk 0:00:43.2]} 36. Kh1 {[%clk 0:00:04.4]}
36... Nxg3+ {[%clk 0:00:44.2]} 37. Kg1 {[%clk 0:00:05.5]} 37... Bxc4 {[%clk
0:00:41.2]} 38. Ne7 {[%clk 0:00:03]} 38... Bf6 {[%clk 0:00:38.6]} 39. Ng4 {[%clk
0:00:03.7]} 39... Bxe7 {[%clk 0:00:35.1]} 40. Rxe7 {[%clk 0:00:05.6]} 40... Be6
{[%clk 0:00:34.4]} 41. Nf6+ {[%clk 0:00:06]} 41... Kg6 {[%clk 0:00:33.4]} 42.
Ne8 {[%clk 0:00:07.9]} 42... c4 {[%clk 0:00:30.1]} 43. Nxd6 {[%clk 0:00:08.6]}
43... c3 {[%clk 0:00:31.5]} 44. Rc7 {[%clk 0:00:08.8]} 44... c2 {[%clk
0:00:29.9]} 45. Kh2 {[%clk 0:00:10.3]} 45... Nf5 {[%clk 0:00:20.9]} 46. Nxf5
{[%clk 0:00:02.1]} 46... Bxf5 {[%clk 0:00:21.1]} 47. e4 {[%clk 0:00:03.7]} 47...
Be6 {[%clk 0:00:19.5]} 48. Kg3 {[%clk 0:00:05.3]} 48... Kf6 {[%clk 0:00:20.2]}
49. Rc5 {[%clk 0:00:05.8]} 49... Bb3 {[%clk 0:00:20.1]} 50. e5+ {[%clk
0:00:07.2]} 50... Ke6 {[%clk 0:00:20.4]} 51. Bh3+ {[%clk 0:00:08.6]} 51... Ke7
{[%clk 0:00:21.8]} 52. Bf5 {[%clk 0:00:10.3]} 52... Ra1 {[%clk 0:00:19.4]} 53.
Rc7+ {[%clk 0:00:11.5]} 53... Kf8 {[%clk 0:00:19.6]} 54. Rc8+ {[%clk 0:00:13.1]}
54... Kg7 {[%clk 0:00:20.3]} 55. Bxc2 {[%clk 0:00:14.3]} 55... Bxc2 {[%clk
0:00:20.9]} 56. Rxc2 {[%clk 0:00:16.2]} 56... Re1 {[%clk 0:00:22.4]} 57. Rc5
{[%clk 0:00:17.1]} 57... Kg6 {[%clk 0:00:23.2]} 58. Kg4 {[%clk 0:00:16.6]} 58...
Re4+ {[%clk 0:00:23.1]} 59. Kf3 {[%clk 0:00:18]} 59... Rf4+ {[%clk 0:00:23.9]}
60. Kg3 {[%clk 0:00:18.6]} 60... Kf5 {[%clk 0:00:24.9]} 61. Rb5 {[%clk
0:00:19.5]} 61... Re4 {[%clk 0:00:25.2]} 62. e6+ {[%clk 0:00:21]} 62... Kxe6
{[%clk 0:00:25.9]} 63. Rb6+ {[%clk 0:00:22.5]} 63... Kf5 {[%clk 0:00:27.1]} 64.
Rxh6 {[%clk 0:00:24.4]} 64... Re3+ {[%clk 0:00:28.5]} 65. Kf2 {[%clk 0:00:25.9]}
65... Ra3 {[%clk 0:00:30.3]} 66. Rb6 {[%clk 0:00:26.9]} 66... Ra4 {[%clk
0:00:29.2]} 67. Kg3 {[%clk 0:00:28]} 67... Ra3+ {[%clk 0:00:30.5]} 68. Kg2
{[%clk 0:00:29.3]} 68... f6 {[%clk 0:00:31.7]} 69. Rc6 {[%clk 0:00:30.1]} 69...
g4 {[%clk 0:00:32.5]} 70. Rc8 {[%clk 0:00:30.4]} 70... Kf4 {[%clk 0:00:33.1]}
71. Rc4+ {[%clk 0:00:31.3]} 71... Kg5 {[%clk 0:00:34.3]} 72. Rc8 {[%clk
0:00:32.7]} 72... f5 {[%clk 0:00:35.4]} 73. Rc2 {[%clk 0:00:33.7]} 73... f4
{[%clk 0:00:35.4]} 74. Rd2 {[%clk 0:00:34.6]} 74... Kh4 {[%clk 0:00:36.2]} 75.
Rb2 {[%clk 0:00:33.1]} 75... Rh3 {[%clk 0:00:36.2]} 76. Rb8 {[%clk 0:00:33.3]}
76... f3+ {[%clk 0:00:37]} 77. Kf2 {[%clk 0:00:34.6]} 77... Rh2+ {[%clk
0:00:38]} 78. Kg1 {[%clk 0:00:35.4]} 78... Kg3 {[%clk 0:00:38]} 79. Rb1 {[%clk
0:00:34]} 79... f2+ {[%clk 0:00:38.4]} 0-1

[Event "*** Titled Tuesday 3|2 Blitz"]
[Site "Chess.com"]
[Date "2017.06.06"]
[Round "10"]
[White "Zufi1811"]
[Black "ChessQueen"]
[Result "1/2-1/2"]
[WhiteElo "2359"]
[BlackElo "2504"]
[TimeControl "180+2"]
[EndTime "16:07:27 PDT"]
[Termination "Game drawn by repetition"]

1. e4 {[%clk 0:03:02]} 1... c5 {[%clk 0:03:00.5]} 2. Nf3 {[%clk 0:03:02.5]} 2...
Nc6 {[%clk 0:03:01.5]} 3. Bb5 {[%clk 0:03:00.8]} 3... g6 {[%clk 0:03:02.4]} 4.
O-O {[%clk 0:03:01]} 4... Bg7 {[%clk 0:03:03.3]} 5. Bxc6 {[%clk 0:03:02.2]} 5...
bxc6 {[%clk 0:03:03]} 6. Re1 {[%clk 0:03:01.2]} 6... Nf6 {[%clk 0:02:51.7]} 7.
h3 {[%clk 0:02:58.8]} 7... O-O {[%clk 0:02:50.9]} 8. e5 {[%clk 0:02:58.6]} 8...
Nd5 {[%clk 0:02:50.5]} 9. c4 {[%clk 0:03:00.1]} 9... Nb6 {[%clk 0:02:43.9]} 10.
d4 {[%clk 0:03:02]} 10... cxd4 {[%clk 0:02:39.3]} 11. Qxd4 {[%clk 0:02:25.6]}
11... d6 {[%clk 0:02:39.6]} 12. Qh4 {[%clk 0:02:24.4]} 12... dxe5 {[%clk
0:02:24.3]} 13. Bh6 {[%clk 0:02:22.5]} 13... f6 {[%clk 0:02:18]} 14. Bxg7 {[%clk
0:02:20.5]} 14... Kxg7 {[%clk 0:02:18.9]} 15. Nc3 {[%clk 0:02:21.6]} 15... Be6
{[%clk 0:01:45.9]} 16. Rad1 {[%clk 0:02:21.5]} 16... Qc8 {[%clk 0:01:45.1]} 17.
b3 {[%clk 0:02:21.8]} 17... h6 {[%clk 0:01:35.5]} 18. Ne4 {[%clk 0:02:09.3]}
18... Bf5 {[%clk 0:01:29]} 19. Qg3 {[%clk 0:01:33.3]} 19... Bxe4 {[%clk
0:01:09.8]} 20. Rxe4 {[%clk 0:01:35.2]} 20... Qf5 {[%clk 0:00:47.1]} 21. Rde1
{[%clk 0:01:29.8]} 21... h5 {[%clk 0:00:36]} 22. Nh4 {[%clk 0:01:20.5]} 22...
Qg5 {[%clk 0:00:36.9]} 23. Qc3 {[%clk 0:01:15.7]} 23... Nd7 {[%clk 0:00:29.2]}
24. Qb4 {[%clk 0:01:11.4]} 24... c5 {[%clk 0:00:27.6]} 25. Qb7 {[%clk
0:01:10.1]} 25... Rfd8 {[%clk 0:00:12.2]} 26. Nf3 {[%clk 0:00:52.9]} 26... Qf5
{[%clk 0:00:12.2]} 27. Nh4 {[%clk 0:00:48.4]} 27... Qe6 {[%clk 0:00:13.1]} 28.
R4e3 {[%clk 0:00:37.2]} 28... Rab8 {[%clk 0:00:14.1]} 29. Qxa7 {[%clk
0:00:35.4]} 29... Ra8 {[%clk 0:00:14.6]} 30. Qc7 {[%clk 0:00:35.7]} 30... g5
{[%clk 0:00:15.4]} 31. Nf3 {[%clk 0:00:35.2]} 31... Rdc8 {[%clk 0:00:15]} 32.
Qb7 {[%clk 0:00:35.5]} 32... Qc6 {[%clk 0:00:13.6]} 33. Qxc6 {[%clk 0:00:34.2]}
33... Rxc6 {[%clk 0:00:14.7]} 34. R3e2 {[%clk 0:00:34.1]} 34... Rd6 {[%clk
0:00:14.2]} 35. Rc2 {[%clk 0:00:30.8]} 35... Nf8 {[%clk 0:00:14.6]} 36. Nd2
{[%clk 0:00:31.5]} 36... Ne6 {[%clk 0:00:15.3]} 37. Ne4 {[%clk 0:00:32.8]} 37...
Rda6 {[%clk 0:00:16.2]} 38. Nc3 {[%clk 0:00:17.1]} 38... Nd4 {[%clk 0:00:16.2]}
39. Rd2 {[%clk 0:00:18.5]} 39... e6 {[%clk 0:00:17]} 40. f3 {[%clk 0:00:19.5]}
40... h4 {[%clk 0:00:16.7]} 41. Kf2 {[%clk 0:00:20.3]} 41... Kg6 {[%clk
0:00:17.6]} 42. Rb1 {[%clk 0:00:20.7]} 42... Ra5 {[%clk 0:00:18.3]} 43. Rbb2
{[%clk 0:00:21.9]} 43... R8a7 {[%clk 0:00:18.5]} 44. Ne4 {[%clk 0:00:22.6]}
44... f5 {[%clk 0:00:15.7]} 45. Nc3 {[%clk 0:00:24]} 45... Kf6 {[%clk
0:00:16.9]} 46. a4 {[%clk 0:00:22.5]} 46... Rb7 {[%clk 0:00:12.1]} 47. Nb5
{[%clk 0:00:23.8]} 47... Rb6 {[%clk 0:00:11.8]} 48. b4 {[%clk 0:00:23.4]} 48...
cxb4 {[%clk 0:00:12.2]} 49. Rxb4 {[%clk 0:00:25.3]} 49... Nc6 {[%clk 0:00:12.1]}
50. c5 {[%clk 0:00:20.1]} 50... Rb8 {[%clk 0:00:06.9]} 51. Rc4 {[%clk
0:00:20.3]} 51... Rba8 {[%clk 0:00:07.5]} 52. Rd6 {[%clk 0:00:20.5]} 52... Nd4
{[%clk 0:00:08]} 53. Nxd4 {[%clk 0:00:19.5]} 53... exd4 {[%clk 0:00:09.3]} 54.
Rdxd4 {[%clk 0:00:18.7]} 54... Rc8 {[%clk 0:00:10.4]} 55. c6 {[%clk 0:00:19.1]}
55... Ra6 {[%clk 0:00:11.4]} 56. c7 {[%clk 0:00:19.1]} 56... e5 {[%clk
0:00:10.8]} 57. Rd5 {[%clk 0:00:18.3]} 57... Ke6 {[%clk 0:00:10.6]} 58. Rdc5
{[%clk 0:00:19]} 58... Kd6 {[%clk 0:00:07.6]} 59. a5 {[%clk 0:00:20.1]} 59...
Ra7 {[%clk 0:00:07.8]} 60. Rc6+ {[%clk 0:00:18.1]} 60... Kd5 {[%clk 0:00:09.1]}
61. R4c5+ {[%clk 0:00:17.8]} 61... Kd4 {[%clk 0:00:10.5]} 62. a6 {[%clk
0:00:18.3]} 62... Rxa6 {[%clk 0:00:10.6]} 63. Rxa6 {[%clk 0:00:13.4]} 63... Kxc5
{[%clk 0:00:11.6]} 64. Rf6 {[%clk 0:00:14.8]} 64... Rxc7 {[%clk 0:00:12]} 65.
Rxf5 {[%clk 0:00:15.7]} 65... Kd4 {[%clk 0:00:13.6]} 66. Rxg5 {[%clk 0:00:16.5]}
66... Rh7 {[%clk 0:00:09.5]} 67. Rg4+ {[%clk 0:00:16.4]} 67... Kd5 {[%clk
0:00:10.8]} 68. Re4 {[%clk 0:00:17.6]} 68... Rh6 {[%clk 0:00:10.4]} 69. Ra4
{[%clk 0:00:17.8]} 69... Rh8 {[%clk 0:00:10.6]} 70. Ke3 {[%clk 0:00:17.8]} 70...
Rg8 {[%clk 0:00:10.6]} 71. Ra5+ {[%clk 0:00:15.1]} 71... Ke6 {[%clk 0:00:11.3]}
72. Ra2 {[%clk 0:00:17]} 72... Kf5 {[%clk 0:00:12.2]} 73. Ra4 {[%clk 0:00:12.3]}
73... Rxg2 {[%clk 0:00:11.4]} 74. Rxh4 {[%clk 0:00:13.6]} 74... Ra2 {[%clk
0:00:10.4]} 75. Rh5+ {[%clk 0:00:13.9]} 75... Kf6 {[%clk 0:00:11.6]} 76. h4
{[%clk 0:00:13.5]} 76... Rh2 {[%clk 0:00:12.2]} 77. Rh8 {[%clk 0:00:11.4]} 77...
Kg7 {[%clk 0:00:12.3]} 78. Re8 {[%clk 0:00:11.6]} 78... Rxh4 {[%clk 0:00:11.5]}
79. Rxe5 {[%clk 0:00:12.3]} 79... Ra4 {[%clk 0:00:07.3]} 80. f4 {[%clk
0:00:12.6]} 80... Kf6 {[%clk 0:00:07.7]} 81. Kf3 {[%clk 0:00:13.8]} 81... Ra1
{[%clk 0:00:08.5]} 82. Rb5 {[%clk 0:00:13.7]} 82... Rf1+ {[%clk 0:00:09.4]} 83.
Ke3 {[%clk 0:00:15]} 83... Re1+ {[%clk 0:00:10.5]} 84. Kf2 {[%clk 0:00:16.4]}
84... Rc1 {[%clk 0:00:11.6]} 85. Rb3 {[%clk 0:00:09.6]} 85... Rd1 {[%clk
0:00:12.1]} 86. Kf3 {[%clk 0:00:09.9]} 86... Rf1+ {[%clk 0:00:12.6]} 87. Ke3
{[%clk 0:00:09.9]} 87... Re1+ {[%clk 0:00:13.7]} 88. Kf3 {[%clk 0:00:10.7]}
88... Rf1+ {[%clk 0:00:14.6]} 89. Ke3 {[%clk 0:00:12.2]} 89... Re1+ {[%clk
0:00:15.8]} 90. Kf3 {[%clk 0:00:13.7]} 90... Rf1+ {[%clk 0:00:16.8]} 1/2-1/2